fUSD/lending_fUSD_20241207
["ID","MTS","AMOUNT","RATE_DAILY","PERIOD"]
[344614924,1733614232989,-451.85088375,0.00014977,2]
[344614925,1733614233001,-451.85088375,0.00014977,2]
[344614926,1733614233011,-338.88816282,0.00014978,2]
[344614927,1733614233021,-803.29046001,0.00014979,2]
[344614928,1733614233030,-200.0,0.00014981,2]
[344614929,1733614233040,-200.0,0.00014981,2]
[344614930,1733614233050,-602.467845,0.00014982,2]
[344614931,1733614233061,-200.0,0.00014982,2]
[344614932,1733614233070,-254.16612211,0.00014982,2]
[344614933,1733614233080,-451.85088375,0.00014983,2]
[344614934,1733614233091,-1071.05394668,0.00014983,2]
[344614935,1733614233101,-602.467845,0.00014983,2]
[344614936,1733614233111,-803.29046001,0.00014984,2]
[344614937,1733614233121,-602.467845,0.00014984,2]
[344614938,1733614233131,-200.0,0.00014984,2]
[344614939,1733614233141,-602.467845,0.00014984,2]
[344614940,1733614233151,-200.0,0.00014985,2]
[344614941,1733614233161,-200.0,0.00014985,2]
[344614942,1733614233172,-200.0,0.00014986,2]
[344614943,1733614233182,-200.0,0.00014988,2]
[344614944,1733614233192,-338.88816282,0.00014988,2]
[344614945,1733614233203,-338.88816282,0.00014989,2]
[344614946,1733614233213,-602.467845,0.0001499,2]
[344614947,1733614233223,-254.16612211,0.00014991,2]
[344614948,1733614233234,-803.29046001,0.00014994,2]
[344614949,1733614233243,-200.0,0.00014996,2]
[344614950,1733614233258,-602.467845,0.00014997,2]
[344614951,1733614233272,-1071.05394668,0.00014998,2]
[344614952,1733614233282,-200.0,0.00014998,2]
[344614953,1733614233292,-338.88816282,0.00014999,2]
[344614954,1733614233303,-200.0,0.00014999,2]
[344614955,1733614233313,-500.0,0.00015,2]
[344614956,1733614233323,-254.16612211,0.00015,2]
[344614957,1733614233332,-14842.70692689,0.00015,2]
[344614958,1733614233342,-757.83,0.000151,2]
[344614959,1733614233352,-192.0,0.00015576,30]
[344614960,1733614233362,-150.0,0.00016325,2]
[344614961,1733614233371,-192.0,0.00016505,30]
[344614962,1733614233381,-409.22,0.00016602,2]
[344614963,1733614233391,-550.0,0.00017,2]
[344614964,1733614233401,-192.0,0.00017434,30]
[344614965,1733614233411,-2924.0,0.000177,2]
[344614966,1733614233420,-552.68,0.00018145,2]
[344614967,1733614233429,-250.0,0.00018164,2]
[344614968,1733614233440,-1500.0,0.00018221,2]
[344614969,1733614233449,-2307.42,0.00018273,2]
[344614970,1733614233459,-243.2,0.00018274,2]
[344614971,1733614233468,-186.45,0.00018333,2]
[344614972,1733614233478,-324.51,0.00018333,2]
[344614973,1733614233488,-285.64,0.00018344,2]
[344614974,1733614233499,-175.79,0.0001835,2]
[344614975,1733614233509,-192.0,0.00018363,30]
[344614976,1733614233518,-1248.5,0.00018364,30]
[344614977,1733614233528,-1000.0,0.00018392,2]
[344614978,1733614233538,-164.96,0.00018785,2]
[344614979,1733614233547,-409.22,0.00018866,2]
[344614980,1733614233556,-600.0,0.000189,6]
[344614981,1733614233566,-985.39,0.00018962,7]
[344614982,1733614233576,-985.39,0.00018962,7]
[344614983,1733614233586,-985.39,0.00018962,7]
[344614984,1733614233596,-985.39,0.00018962,7]
[344614985,1733614233606,-10954.00566655,0.00018999,2]
[344614986,1733614233616,-16383.31758725,0.00019,2]
[344614987,1733614233625,-276.251,0.00019,2]
[344614988,1733614233636,-600.0,0.00019,2]
[344614989,1733614233646,-16127.54256172,0.00019,2]
[344614990,1733614233655,-1200.0,0.00019,6]
[344614991,1733614233664,-19620.36,0.000191,2]
[344614992,1733614233674,-1800.0,0.000191,6]
[344614993,1733614233684,-4000.0,0.00019178,2]
[344614994,1733614233694,-2400.0,0.000192,7]
[344614995,1733614233703,-7455.0,0.00019211,2]
[344614996,1733614233713,-985.39,0.00019235,7]
[344614997,1733614233723,-985.39,0.00019235,7]
[344614998,1733614233733,-192.0,0.00019293,30]
[344614999,1733614233743,-3000.0,0.000193,7]
[344615000,1733614233757,-600.0,0.000194,7]
[344615001,1733614233767,-1000.0,0.000195,2]
[344615002,1733614233778,-600.0,0.000195,7]
[344615003,1733614233788,-448.257,0.00019508,2]
[344615004,1733614233798,-173.77538395,0.00019508,2]
[344615005,1733614233808,-985.39,0.00019508,7]
[344615006,1733614233818,-985.39,0.00019508,7]
[344615007,1733614233828,-797.07580916,0.000196,2]
[344615008,1733614233838,-600.0,0.000196,7]
[344615009,1733614233848,-166.66666668,0.000197,2]
[344615010,1733614233857,-600.0,0.000197,7]
[344615011,1733614233867,-27969.79,0.000197,2]
[344615012,1733614233876,-985.39,0.00019781,7]
[344615013,1733614233886,-985.39,0.00019781,7]
[344615014,1733614233896,-7895.59641584,0.00019798,2]
[344615015,1733614233905,-500.0,0.00019799,2]
[344615016,1733614233916,-500.0,0.00019799,2]
[344615017,1733614233925,-500.0,0.00019799,2]
[344615018,1733614233934,-500.0,0.00019799,2]
[344615019,1733614233943,-500.0,0.00019799,2]
[344615020,1733614233952,-527.56,0.00019799,2]
[344615021,1733614233962,-500.0,0.00019799,2]
[344615022,1733614233971,-500.0,0.00019799,2]
[344615023,1733614233980,-500.0,0.00019799,2]
[344615024,1733614233989,-500.0,0.00019799,2]
[344615025,1733614234000,-9995.70509444,0.000198,2]
[344615026,1733614234018,-1069.00829095,0.000198,2]
[344615027,1733614234030,-14071.64878412,0.000198,2]
[344615028,1733614234040,-166.66666666,0.000198,2]
[344615029,1733614234050,-3000.0,0.000198,2]
[344615031,1733614234061,-690.0,0.000198,7]
[344615033,1733614234070,-2469.0435,0.00019895,2]
[344615035,1733614234080,-218.1103,0.00019899,2]
[344615037,1733614234090,-5000.0,0.00019899,2]
[344615039,1733614234099,-166.66666666,0.000199,2]
[344615041,1733614234109,-2500.0,0.00019994,2]
[344615042,1733614234119,-500.0,0.00019994,2]
[344615044,1733614234129,-500.0,0.00019995,2]
[344615046,1733614234139,-500.0,0.00019995,2]
[344615048,1733614234149,-500.0,0.00019995,2]
[344615050,1733614234159,-500.0,0.00019995,2]
[344615052,1733614234168,-500.0,0.00019995,2]
[344615054,1733614234178,-500.0,0.00019995,2]
[344615056,1733614234189,-500.0,0.00019995,2]
[344615058,1733614234200,-500.0,0.00019995,2]
[344615060,1733614234210,-500.0,0.00019995,2]
[344615062,1733614234219,-500.0,0.00019995,2]
[344615064,1733614234229,-500.0,0.00019995,2]
[344615066,1733614234239,-500.0,0.00019995,2]
[344615068,1733614234251,-500.0,0.00019995,2]
[344615070,1733614234265,-500.0,0.00019995,2]
[344615072,1733614234279,-500.0,0.00019995,2]
[344615073,1733614234289,-500.0,0.00019995,2]
[344615074,1733614234299,-500.0,0.00019995,2]
[344615075,1733614234310,-500.0,0.00019995,2]
[344615076,1733614234320,-500.0,0.00019995,2]
[344615092,1733614234330,-500.0,0.00019995,2]
[344615094,1733614234521,-500.0,0.00019995,2]
[344615096,1733614234531,-500.0,0.00019995,2]
[344615098,1733614234541,-500.0,0.00019995,2]
[344615100,1733614234551,-500.0,0.00019995,2]
[344615102,1733614234560,-610.02,0.00019995,2]
[344615103,1733614234569,-500.0,0.00019995,2]
[344615105,1733614234578,-500.0,0.00019995,2]
[344615106,1733614234588,-500.0,0.00019995,2]
[344615107,1733614234597,-500.0,0.00019995,2]
[344615108,1733614234607,-500.0,0.00019995,2]
[344615109,1733614234616,-500.0,0.00019995,2]
[344615110,1733614234626,-500.0,0.00019995,2]
[344615111,1733614234635,-500.0,0.00019995,2]
[344615112,1733614234646,-500.0,0.00019995,2]
[344615113,1733614234655,-537.07,0.00019995,2]
[344615114,1733614234665,-500.0,0.00019995,2]
[344615115,1733614234674,-500.0,0.00019995,2]
[344615116,1733614234684,-9499.0436608,0.00019996,2]
[344615117,1733614234693,-28363.0498717,0.00019996,2]
[344615118,1733614234703,-392.55211062,0.00019996,2]
[344615119,1733614234712,-500.0,0.00019998,2]
[344615120,1733614234721,-500.0,0.00019998,2]
[344615121,1733614234730,-500.0,0.00019998,2]
[344615122,1733614234739,-500.0,0.00019998,2]
[344615123,1733614234749,-500.0,0.00019998,2]
[344615124,1733614234759,-151.02,0.00019998,2]
[344615125,1733614234768,-500.0,0.00019998,2]
[344615126,1733614234777,-500.0,0.00019998,2]
[344615127,1733614234787,-500.0,0.00019998,2]
[344615128,1733614234796,-500.0,0.00019998,2]
[344615129,1733614234805,-649.18,0.00019998,2]
[344615130,1733614234814,-500.0,0.00019998,2]
[344615131,1733614234824,-500.0,0.00019998,2]
[344615132,1733614234833,-500.0,0.00019998,2]
[344615133,1733614234842,-500.0,0.00019998,2]
[344615134,1733614234851,-500.0,0.00019998,2]
[344615135,1733614234860,-500.0,0.00019998,2]
[344615136,1733614234869,-500.0,0.00019998,2]
[344615137,1733614234878,-500.0,0.00019998,2]
[344615138,1733614234887,-500.0,0.00019998,2]
[344615139,1733614234897,-500.0,0.00019998,2]
[344615140,1733614234906,-500.0,0.00019998,2]
[344615141,1733614234915,-500.0,0.00019998,2]
[344615142,1733614234924,-639.22,0.00019998,2]
[344615143,1733614234933,-500.0,0.00019998,2]
[344615144,1733614234942,-500.0,0.00019998,2]
[344615145,1733614234952,-500.0,0.00019998,2]
[344615146,1733614234961,-500.0,0.00019998,2]
[344615147,1733614234971,-500.0,0.00019998,2]
[344615148,1733614234980,-500.0,0.00019998,2]
[344615149,1733614234989,-500.0,0.00019998,2]
[344615150,1733614235000,-258.84,0.00019998,2]
[344615151,1733614235010,-500.0,0.00019998,2]
[344615152,1733614235019,-500.0,0.00019998,2]
[344615153,1733614235033,-500.0,0.00019998,2]
[344615154,1733614235042,-500.0,0.00019998,2]
[344615155,1733614235051,-500.0,0.00019998,2]
[344615156,1733614235060,-500.0,0.00019998,2]
[344615157,1733614235070,-500.0,0.00019998,2]
[344615158,1733614235079,-500.0,0.00019998,2]
[344615159,1733614235088,-500.0,0.00019998,2]
[344615160,1733614235097,-500.0,0.00019998,2]
[344615161,1733614235106,-624.49,0.00019998,2]
[344615162,1733614235115,-500.0,0.00019998,2]
[344615163,1733614235124,-500.0,0.00019998,2]
[344615164,1733614235133,-500.0,0.00019998,2]
[344615165,1733614235142,-500.0,0.00019998,2]
[344615166,1733614235150,-500.0,0.00019998,2]
[344615167,1733614235159,-500.0,0.00019998,2]
[344615168,1733614235168,-500.0,0.00019998,2]
[344615169,1733614235177,-500.0,0.00019998,2]
[344615170,1733614235187,-500.0,0.00019998,2]
[344615171,1733614235196,-500.0,0.00019998,2]
[344615172,1733614235206,-500.0,0.00019998,2]
[344615173,1733614235215,-500.0,0.00019998,2]
[344615174,1733614235225,-500.0,0.00019998,2]
[344615175,1733614235234,-500.0,0.00019998,2]
[344615176,1733614235244,-500.0,0.00019998,2]
[344615177,1733614235261,-500.0,0.00019998,2]
[344615178,1733614235274,-500.0,0.00019998,2]
[344615179,1733614235283,-500.0,0.00019998,2]
[344615180,1733614235293,-500.0,0.00019998,2]
[344615181,1733614235302,-500.0,0.00019998,2]
[344615182,1733614235313,-500.0,0.00019998,2]
[344615183,1733614235322,-500.0,0.00019998,2]
[344615184,1733614235331,-500.0,0.00019998,2]
[344615185,1733614235341,-500.0,0.00019998,2]
[344615186,1733614235350,-1000.0,0.00019998,2]
[344615187,1733614235359,-500.0,0.00019998,2]
[344615188,1733614235367,-500.0,0.00019998,2]
[344615189,1733614235377,-500.0,0.00019998,2]
[344615190,1733614235386,-500.0,0.00019998,2]
[344615191,1733614235395,-500.0,0.00019998,2]
[344615192,1733614235403,-500.0,0.00019998,2]
[344615193,1733614235413,-500.0,0.00019998,2]
[344615194,1733614235422,-500.0,0.00019998,2]
[344615195,1733614235431,-500.0,0.00019998,2]
[344615196,1733614235439,-500.0,0.00019998,2]
[344615197,1733614235448,-500.0,0.00019998,2]
[344615198,1733614235457,-500.0,0.00019998,2]
[344615199,1733614235466,-500.0,0.00019998,2]
[344615200,1733614235475,-500.0,0.00019998,2]
[344615201,1733614235484,-500.0,0.00019998,2]
[344615202,1733614235493,-500.0,0.00019998,2]
[344615203,1733614235511,-500.0,0.00019998,2]
[344615204,1733614235520,-500.0,0.00019998,2]
[344615205,1733614235529,-500.0,0.00019998,2]
[344615206,1733614235541,-500.0,0.00019998,2]
[344615207,1733614235550,-500.0,0.00019998,2]
[344615208,1733614235559,-500.0,0.00019998,2]
[344615209,1733614235568,-500.0,0.00019998,2]
[344615210,1733614235577,-500.0,0.00019998,2]
[344615211,1733614235586,-500.0,0.00019998,2]
[344615212,1733614235595,-500.0,0.00019998,2]
[344615213,1733614235603,-500.0,0.00019998,2]
[344615214,1733614235613,-500.0,0.00019998,2]
[344615215,1733614235622,-500.0,0.00019998,2]
[344615216,1733614235631,-500.0,0.00019998,2]
[344615217,1733614235640,-500.0,0.00019998,2]
[344615218,1733614235649,-500.0,0.00019998,2]
[344615219,1733614235658,-500.0,0.00019998,2]
[344615220,1733614235667,-500.0,0.00019998,2]
[344615221,1733614235676,-500.0,0.00019998,2]
[344615222,1733614235686,-500.0,0.00019998,2]
[344615223,1733614235695,-500.0,0.00019998,2]
[344615224,1733614235704,-500.0,0.00019998,2]
[344615225,1733614235713,-500.0,0.00019998,2]
[344615226,1733614235722,-500.0,0.00019998,2]
[344615227,1733614235731,-500.0,0.00019998,2]
[344615228,1733614235740,-671.79,0.00019998,2]
[344615229,1733614235756,-500.0,0.00019998,2]
[344615230,1733614235765,-500.0,0.00019998,2]
[344615231,1733614235774,-390.81,0.00019998,2]
[344615232,1733614235783,-500.0,0.00019998,2]
[344615233,1733614235792,-500.0,0.00019999,2]
[344615234,1733614235801,-500.0,0.00019999,2]
[344615235,1733614235811,-500.0,0.00019999,2]
[344615236,1733614235820,-500.0,0.00019999,2]
[344615237,1733614235830,-404.2,0.00019999,2]
[344615238,1733614235839,-500.0,0.00019999,2]
[344615239,1733614235848,-500.0,0.00019999,2]
[344615240,1733614235857,-500.0,0.00019999,2]
[344615241,1733614235866,-500.0,0.00019999,2]
[344615242,1733614235875,-500.0,0.00019999,2]
[344615243,1733614235885,-500.0,0.00019999,2]
[344615244,1733614235894,-416.7,0.00019999,2]
[344615245,1733614235903,-500.0,0.00019999,2]
[344615246,1733614235912,-500.0,0.00019999,2]
[344615247,1733614235922,-500.0,0.00019999,2]
[344615248,1733614235931,-495.51,0.00019999,2]
[344615249,1733614235940,-500.0,0.00019999,2]
[344615250,1733614235950,-500.0,0.00019999,2]
[344615251,1733614235959,-500.0,0.00019999,2]
[344615252,1733614235969,-191.13,0.00019999,2]
[344615253,1733614235978,-500.0,0.00019999,2]
[344615254,1733614235987,-620.98,0.00019999,2]
[344615255,1733614235996,-161.72,0.00019999,2]
[344615256,1733614236008,-500.0,0.00019999,2]
[344615257,1733614236017,-500.0,0.00019999,2]
[344615258,1733614236027,-500.0,0.00019999,2]
[344615259,1733614236036,-500.0,0.00019999,2]
[344615260,1733614236045,-500.0,0.00019999,2]
[344615261,1733614236054,-500.0,0.00019999,2]
[344615262,1733614236064,-239.39,0.00019999,2]
[344615263,1733614236073,-163.73,0.00019999,2]
[344615264,1733614236083,-500.0,0.00019999,2]
[344615265,1733614236092,-500.0,0.00019999,2]
[344615266,1733614236101,-500.0,0.00019999,2]
[344615267,1733614236110,-500.0,0.00019999,2]
[344615268,1733614236120,-430.83,0.00019999,2]
[344615269,1733614236130,-500.0,0.00019999,2]
[344615270,1733614236139,-500.0,0.00019999,2]
[344615271,1733614236148,-341.51,0.00019999,2]
[344615272,1733614236157,-500.0,0.00019999,2]
[344615273,1733614236167,-500.0,0.00019999,2]
[344615274,1733614236176,-500.0,0.00019999,2]
[344615275,1733614236186,-500.0,0.00019999,2]
[344615276,1733614236195,-350.5,0.00019999,2]
[344615277,1733614236204,-500.0,0.00019999,2]
[344615278,1733614236216,-479.7,0.00019999,2]
[344615279,1733614236227,-156.45,0.00019999,2]
[344615280,1733614236239,-500.0,0.00019999,2]
[344615281,1733614236255,-523.68,0.00019999,2]
[344615282,1733614236270,-510.87,0.00019999,2]
[344615283,1733614236281,-500.0,0.00019999,2]
[344615284,1733614236292,-500.0,0.00019999,2]
[344615285,1733614236302,-556.72,0.00019999,2]
[344615286,1733614236316,-500.0,0.00019999,2]
[344615287,1733614236329,-160.12,0.00019999,2]
[344615288,1733614236342,-500.0,0.00019999,2]
[344615289,1733614236354,-500.0,0.00019999,2]
[344615290,1733614236366,-500.0,0.00019999,2]
[344615291,1733614236378,-500.0,0.00019999,2]
[344615292,1733614236390,-500.0,0.00019999,2]
[344615293,1733614236403,-500.0,0.00019999,2]
[344615294,1733614236415,-500.0,0.00019999,2]
[344615295,1733614236426,-238.55,0.00019999,2]
[344615296,1733614236437,-500.0,0.00019999,2]
[344615297,1733614236447,-500.0,0.00019999,2]
[344615298,1733614236458,-500.0,0.00019999,2]
[344615299,1733614236470,-500.0,0.00019999,2]
[344615300,1733614236481,-500.0,0.00019999,2]
[344615301,1733614236493,-448.66,0.00019999,2]
[344615302,1733614236508,-500.0,0.00019999,2]
[344615303,1733614236523,-179.56,0.00019999,2]
[344615304,1733614236537,-500.0,0.00019999,2]
[344615305,1733614236558,-516.72,0.00019999,2]
[344615306,1733614236575,-500.0,0.00019999,2]
[344615307,1733614236586,-500.0,0.00019999,2]
[344615308,1733614236599,-500.0,0.00019999,2]
[344615309,1733614236610,-500.0,0.00019999,2]
[344615310,1733614236622,-555.92,0.00019999,2]
[344615311,1733614236634,-287.85,0.00019999,2]
[344615312,1733614236646,-255.28,0.00019999,2]
[344615313,1733614236659,-244.02,0.00019999,2]
[344615314,1733614236670,-500.0,0.00019999,2]
[344615315,1733614236682,-500.0,0.00019999,2]
[344615316,1733614236694,-500.0,0.00019999,2]
[344615317,1733614236704,-500.0,0.00019999,2]
[344615318,1733614236716,-500.0,0.00019999,2]
[344615319,1733614236727,-286.04,0.00019999,2]
[344615320,1733614236739,-500.0,0.00019999,2]
[344615321,1733614236751,-500.0,0.00019999,2]
[344615322,1733614236763,-500.0,0.00019999,2]
[344615323,1733614236774,-500.0,0.00019999,2]
[344615324,1733614236786,-500.0,0.00019999,2]
[344615325,1733614236798,-500.0,0.00019999,2]
[344615326,1733614236809,-603.04,0.00019999,2]
[344615327,1733614236820,-500.0,0.00019999,2]
[344615328,1733614236832,-500.0,0.00019999,2]
[344615329,1733614236842,-500.0,0.00019999,2]
[344615330,1733614236852,-419.8,0.00019999,2]
[344615331,1733614236863,-500.0,0.00019999,2]
[344615332,1733614236874,-444.9,0.00019999,2]
[344615333,1733614236885,-500.0,0.00019999,2]
[344615334,1733614236899,-162.93,0.00019999,2]
[344615335,1733614236911,-500.0,0.00019999,2]
[344615336,1733614236921,-500.0,0.00019999,2]
[344615337,1733614236931,-500.0,0.00019999,2]
[344615338,1733614236942,-403.75,0.00019999,2]
[344615339,1733614236953,-500.0,0.00019999,2]
[344615340,1733614236964,-245.0,0.00019999,2]
[344615341,1733614236975,-526.82,0.00019999,2]
[344615342,1733614236985,-500.0,0.00019999,2]
[344615343,1733614237000,-500.0,0.00019999,2]
[344615344,1733614237012,-500.0,0.00019999,2]
[344615345,1733614237024,-589.54,0.00019999,2]
[344615346,1733614237036,-500.0,0.00019999,2]
[344615347,1733614237046,-248.26,0.00019999,2]
[344615348,1733614237056,-500.0,0.00019999,2]
[344615349,1733614237067,-276.65,0.00019999,2]
[344615350,1733614237076,-500.0,0.00019999,2]
[344615351,1733614237086,-500.0,0.00019999,2]
[344615352,1733614237096,-500.0,0.00019999,2]
[344615353,1733614237107,-306.23,0.00019999,2]
[344615354,1733614237117,-590.91,0.00019999,2]
[344615355,1733614237127,-500.0,0.00019999,2]
[344615356,1733614237138,-500.0,0.00019999,2]
[344615357,1733614237148,-500.0,0.00019999,2]
[344615358,1733614237159,-500.0,0.00019999,2]
[344615359,1733614237170,-500.0,0.00019999,2]
[344615360,1733614237180,-500.0,0.00019999,2]
[344615361,1733614237191,-500.0,0.00019999,2]
[344615362,1733614237202,-403.53,0.00019999,2]
[344615363,1733614237213,-500.0,0.00019999,2]
[344615364,1733614237224,-500.0,0.00019999,2]
[344615365,1733614237235,-299.88,0.00019999,2]
[344615366,1733614237246,-500.0,0.00019999,2]
[344615367,1733614237261,-213.24,0.00019999,2]
[344615368,1733614237274,-1000.0,0.00019999,2]
[344615369,1733614237284,-1000.0,0.00019999,2]
[344615370,1733614237295,-1000.0,0.00019999,2]
[344615371,1733614237306,-1000.0,0.00019999,2]
[344615372,1733614237317,-1000.0,0.00019999,2]
[344615373,1733614237328,-905.64,0.00019999,2]
[344615374,1733614237339,-500.0,0.00019999,2]
[344615375,1733614237351,-500.0,0.00019999,2]
[344615376,1733614237361,-500.0,0.00019999,2]
[344615377,1733614237373,-500.0,0.00019999,2]
[344615378,1733614237384,-360.19,0.00019999,2]
[344615379,1733614237395,-500.0,0.00019999,2]
[344615380,1733614237406,-500.0,0.00019999,2]
[344615381,1733614237416,-324.94,0.00019999,2]
[344615382,1733614237427,-537.2,0.00019999,2]
[344615383,1733614237438,-500.0,0.00019999,2]
[344615384,1733614237449,-500.0,0.00019999,2]
[344615385,1733614237460,-345.86,0.00019999,2]
[344615386,1733614237471,-500.0,0.00019999,2]
[344615387,1733614237481,-490.64,0.00019999,2]
[344615388,1733614237492,-500.0,0.00019999,2]
[344615389,1733614237506,-500.0,0.00019999,2]
[344615390,1733614237516,-500.0,0.00019999,2]
[344615391,1733614237527,-500.0,0.00019999,2]
[344615392,1733614237538,-220.99952288,0.00019999,2]
[344615393,1733614237549,-2500.0,0.00019999,2]
[344615394,1733614237560,-2500.0,0.00019999,2]
[344615395,1733614237572,-2500.0,0.00019999,2]
[344615396,1733614237583,-2500.0,0.00019999,2]
[344615397,1733614237593,-2500.0,0.00019999,2]
[344615398,1733614237604,-2500.0,0.00019999,2]
[344615399,1733614237615,-2500.0,0.00019999,2]
[344615400,1733614237626,-2500.0,0.00019999,2]
[344615401,1733614237637,-2500.0,0.00019999,2]
[344615402,1733614237648,-2500.0,0.00019999,2]
[344615403,1733614237658,-2500.0,0.00019999,2]
[344615404,1733614237669,-2500.0,0.00019999,2]
[344615405,1733614237680,-2500.0,0.00019999,2]
[344615406,1733614237691,-2500.0,0.00019999,2]
[344615407,1733614237702,-500.0,0.00019999,2]
[344615408,1733614237713,-2500.0,0.00019999,2]
[344615409,1733614237723,-500.0,0.00019999,2]
[344615410,1733614237734,-2500.0,0.00019999,2]
[344615411,1733614237745,-500.0,0.00019999,2]
[344615412,1733614237761,-2500.0,0.00019999,2]
[344615413,1733614237771,-500.0,0.00019999,2]
[344615414,1733614237783,-2500.0,0.00019999,2]
[344615415,1733614237794,-500.0,0.00019999,2]
[344615416,1733614237804,-2500.0,0.00019999,2]
[344615417,1733614237815,-500.0,0.00019999,2]
[344615418,1733614237826,-2500.0,0.00019999,2]
[344615419,1733614237836,-500.0,0.00019999,2]
[344615420,1733614237847,-2500.0,0.00019999,2]
[344615421,1733614237859,-500.0,0.00019999,2]
[344615422,1733614237870,-2500.0,0.00019999,2]
[344615423,1733614237880,-500.0,0.00019999,2]
[344615424,1733614237891,-2500.0,0.00019999,2]
[344615425,1733614237902,-500.0,0.00019999,2]
[344615426,1733614237913,-500.0,0.00019999,2]
[344615427,1733614237923,-500.0,0.00019999,2]
[344615428,1733614237934,-153.09203379,0.00019999,2]
[344615429,1733614237945,-500.0,0.00019999,2]
[344615430,1733614237956,-500.0,0.00019999,2]
[344615431,1733614237968,-607.25,0.00019999,2]
[344615432,1733614237980,-613.49,0.00019999,2]
[344615433,1733614237991,-500.0,0.00019999,2]
[344615434,1733614238003,-500.0,0.00019999,2]
[344615435,1733614238014,-330.81,0.00019999,2]
[344615436,1733614238025,-182.28,0.00019999,2]
[344615437,1733614238036,-336.23,0.00019999,2]
[344615438,1733614238046,-500.0,0.00019999,2]
[344615439,1733614238057,-500.0,0.00019999,2]
[344615440,1733614238068,-500.0,0.00019999,2]
[344615441,1733614238079,-500.0,0.00019999,2]
[344615442,1733614238089,-500.0,0.00019999,2]
[344615443,1733614238100,-500.0,0.00019999,2]
[344615444,1733614238110,-500.0,0.00019999,2]
[344615445,1733614238121,-197.61,0.00019999,2]
[344615446,1733614238132,-500.0,0.00019999,2]
[344615447,1733614238143,-500.0,0.00019999,2]
[344615448,1733614238154,-360.9,0.00019999,2]
[344615449,1733614238165,-500.0,0.00019999,2]
[344615450,1733614238176,-368.76,0.00019999,2]
[344615451,1733614238186,-500.0,0.00019999,2]
[344615452,1733614238197,-500.0,0.00019999,2]
[344615453,1733614238207,-317.5,0.00019999,2]
[344615454,1733614238418,-601.95,0.00019999,2]
[344615455,1733614238434,-500.0,0.00019999,2]
[344615456,1733614238443,-385.36,0.00019999,2]
[344615457,1733614238452,-500.0,0.00019999,2]
[344615458,1733614238461,-500.0,0.00019999,2]
[344615459,1733614238471,-500.0,0.00019999,2]
[344615460,1733614238480,-500.0,0.00019999,2]
[344615461,1733614238489,-500.0,0.00019999,2]
[344615462,1733614238500,-500.0,0.00019999,2]
[344615463,1733614238510,-397.24,0.00019999,2]
[344615464,1733614238519,-500.0,0.00019999,2]
[344615465,1733614238528,-500.0,0.00019999,2]